bitfinex/quotes_BTCUSD_20241222
["timestamp","ask_amount","ask_price","bid_price","bid_amount"]
[1734882692417,0.8820279,95250.0,95249.0,0.04683955]
[1734882692629,0.4760279,95250.0,95249.0,0.04683955]
[1734882692838,0.0930279,95250.0,95249.0,0.04683955]
[1734882693048,0.2430279,95250.0,95249.0,0.04683955]
[1734882693484,0.2520279,95250.0,95249.0,0.04683955]
[1734882693910,0.159,95250.0,95249.0,0.04683955]
[1734882694452,0.009,95250.0,95249.0,0.04683955]
[1734882694867,0.159,95250.0,95249.0,0.04683955]
[1734882695069,4.631,95250.0,95249.0,0.04683955]
[1734882695935,4.631,95250.0,95249.0,0.04083955]
[1734882696170,0.159,95250.0,95249.0,0.04083955]
[1734882696320,0.009,95250.0,95249.0,0.04083955]
[1734882699065,0.0930279,95258.0,95249.0,0.04083955]
[1734882699282,0.00230488,95256.0,95249.0,0.04083955]
[1734882699505,0.009,95250.0,95249.0,0.04083955]
[1734882699718,0.15,95254.0,95249.0,0.04092525]
[1734882699940,0.15,95252.0,95249.0,0.04092525]
[1734882700146,0.1591714,95250.0,95249.0,0.04092525]
[1734882700982,0.1591714,95250.0,95249.0,0.03492525]
[1734882701386,0.0091714,95250.0,95249.0,0.03492525]
[1734882702015,1.2291714,95250.0,95249.0,0.03492525]
[1734882702225,4.6221714,95250.0,95249.0,0.03492525]
[1734882703036,4.99618014,95250.0,95249.0,8.57e-05]
[1734882703429,4.78620714,95250.0,95249.0,8.57e-05]
[1734882703639,0.31420714,95250.0,95249.0,8.57e-05]
[1734882703842,4.68489874,95250.0,95249.0,8.57e-05]
[1734882705340,0.06289874,95250.0,95249.0,0.0769857]
[1734882705543,0.06289874,95250.0,95249.0,0.10517715]
[1734882705751,0.05389874,95250.0,95249.0,0.20648555]
[1734882705957,0.0001714,95250.0,95249.0,0.20048555]
[1734882706173,0.0091714,95250.0,95249.0,0.20048555]
[1734882706386,0.0001714,95250.0,95249.0,0.20048555]
[1734882706683,0.00230488,95256.0,95255.0,0.02819145]
[1734882707163,0.209886,95290.0,95249.0,0.1468084]
[1734882707164,0.66977744,95297.0,95267.0,0.02819145]
[1734882707404,0.09292121,95278.0,95269.0,0.02819145]
[1734882707635,0.09292121,95278.0,95272.0,0.02819145]
[1734882707877,0.09292121,95278.0,95274.0,0.02819145]
[1734882708347,0.042037,95277.0,95274.0,0.02819145]
[1734882709056,0.042037,95277.0,95275.0,0.0769]
[1734882709298,0.20992,95274.0,95264.0,0.02819145]
[1734882709535,0.15,95272.0,95263.0,0.0769]
[1734882709765,0.15,95270.0,95263.0,0.0769]
[1734882709933,0.15,95267.0,95263.0,0.0769]
[1734882710220,0.15,95265.0,95262.0,0.00016242]
[1734882710508,0.15,95263.0,95262.0,0.00016242]
[1734882710692,0.666,95263.0,95262.0,0.00016242]
[1734882710930,0.325,95263.0,95262.0,0.00016242]
[1734882711155,0.325,95263.0,95255.0,0.02235387]
[1734882711380,0.15,95261.0,95255.0,0.02289729]
[1734882712206,0.0001714,95256.0,95255.0,0.02289729]
[1734882714073,0.0091714,95256.0,95255.0,0.02289729]
[1734882714862,0.9111714,95256.0,95255.0,0.00054342]
[1734882715061,4.3644798,95256.0,95255.0,0.00054342]
[1734882715339,2.5874798,95256.0,95255.0,0.00054342]
[1734882716051,0.15,95254.0,95243.0,0.07152912]
[1734882716206,0.209962,95255.0,95243.0,0.07152912]
[1734882716207,0.15,95252.0,95243.0,0.07152912]
[1734882716552,0.15,95250.0,95246.0,0.02235387]
[1734882716687,0.15,95250.0,95249.0,0.02235387]
[1734882717493,0.00071556,95256.0,95254.0,0.02235387]
[1734882718155,0.00071556,95256.0,95255.0,0.02235387]
[1734882719981,0.00971556,95256.0,95255.0,0.02235387]
[1734882720320,0.00071556,95256.0,95255.0,0.02235387]
[1734882720533,0.00971556,95256.0,95255.0,0.02235387]
[1734882721510,0.00971556,95256.0,95255.0,0.14945387]
[1734882721715,0.00971556,95256.0,95255.0,0.24945387]
[1734882721927,0.09424929,95256.0,95255.0,0.24345387]
[1734882722309,0.10324929,95256.0,95255.0,0.24345387]
[1734882722694,0.25319498,95256.0,95255.0,0.24345387]
[1734882723096,0.15066125,95256.0,95255.0,0.24345387]
[1734882723595,0.15966125,95256.0,95255.0,0.14345387]
[1734882723819,0.00066125,95256.0,95255.0,0.14345387]
[1734882724018,0.00066125,95256.0,95255.0,0.09633957]
[1734882724346,3.61966125,95256.0,95255.0,0.01643957]
[1734882724546,2.73166125,95256.0,95255.0,0.01643957]
[1734882724731,2.55466125,95256.0,95255.0,0.01643957]
[1734882724941,2.14366125,95256.0,95255.0,0.01643957]
[1734882725170,2.15266125,95256.0,95255.0,0.01643957]
[1734882725587,2.14366125,95256.0,95255.0,0.01643957]
[1734882725843,1.96766125,95256.0,95255.0,0.01643957]
[1734882726061,0.75666125,95256.0,95255.0,0.01043957]
[1734882726421,0.53166125,95256.0,95255.0,0.01043957]
[1734882726619,0.46366125,95256.0,95255.0,0.01043957]
[1734882726819,0.34666125,95256.0,95255.0,0.01043957]
[1734882727030,0.00966125,95256.0,95255.0,0.01043957]
[1734882728445,0.00066125,95256.0,95255.0,0.01043957]
[1734882728921,0.00966125,95256.0,95255.0,0.01043957]
[1734882729142,0.00066125,95256.0,95255.0,0.01043957]
[1734882729565,0.00466125,95256.0,95255.0,0.01043957]
[1734882729771,0.15,95260.0,95255.0,0.01043957]
[1734882729946,0.15,95260.0,95255.0,0.01049388]
[1734882730156,0.009,95256.0,95255.0,0.01049388]
[1734882730373,0.15,95260.0,95257.0,0.01035387]
[1734882730536,0.6358226,95395.0,95265.0,0.13335387]
[1734882730537,0.31450016,95266.0,95265.0,0.13335387]
[1734882730739,0.31450016,95266.0,95265.0,0.1668201]
[1734882730935,0.31450016,95266.0,95265.0,0.22866227]
[1734882731350,0.31450016,95266.0,95265.0,0.32866227]
[1734882731557,0.01642671,95296.0,95265.0,0.32866227]
[1734882731558,0.28139125,95270.0,95265.0,0.32866227]
[1734882731756,0.28139125,95270.0,95267.0,0.1]
[1734882731980,0.28139125,95270.0,95269.0,0.00435387]
[1734882732384,0.43139125,95270.0,95269.0,0.00435387]
[1734882732699,0.44039125,95270.0,95269.0,0.20566227]
[1734882732897,0.31450016,95280.0,95276.0,0.10435387]
[1734882733107,0.20984,95311.0,95280.0,0.00435387]
[1734882733108,0.28130668,95281.0,95280.0,0.00435387]
[1734882734146,0.43130668,95281.0,95280.0,0.00435387]
[1734882734348,0.28130668,95281.0,95280.0,0.10435387]
[1734882734551,0.1406338,95284.0,95283.0,0.1]
[1734882735377,0.1406338,95284.0,95280.0,0.00435387]
[1734882735578,0.2906338,95284.0,95283.0,0.1]
[1734882735792,0.15,95284.0,95283.0,0.1]
[1734882736001,0.15,95284.0,95283.0,0.094]
[1734882736203,0.15,95284.0,95283.0,0.09835387]
[1734882736708,0.158,95284.0,95283.0,0.09835387]
[1734882736996,0.15,95284.0,95283.0,0.09835387]
[1734882737209,0.1406338,95289.0,95285.0,0.094]
[1734882737210,0.09363839,95286.0,95285.0,0.094]
[1734882737401,0.09363839,95286.0,95285.0,0.09835387]
[1734882738139,0.09363839,95289.0,95288.0,0.00435387]
[1734882739559,0.09363839,95291.0,95288.0,0.00435387]
[1734882740001,0.09363839,95291.0,95288.0,0.00535387]
[1734882740219,0.009,95289.0,95288.0,0.00535387]
[1734882740422,0.09363839,95291.0,95288.0,0.00435387]
[1734882740876,0.159,95291.0,95290.0,0.00435387]
[1734882741077,0.159,95291.0,95286.0,0.09335387]
[1734882741273,0.15,95291.0,95286.0,0.09335387]
[1734882742069,0.1406338,95294.0,95286.0,0.09335387]
[1734882742070,0.15,95293.0,95286.0,0.09335387]
[1734882742527,4.5733084,95292.0,95261.0,0.0785]
[1734882742779,0.15,95269.0,95260.0,5.431e-05]
[1734882743044,0.209949,95261.0,95260.0,5.431e-05]
[1734882743248,4.831949,95261.0,95260.0,5.431e-05]
[1734882743462,4.84657627,95261.0,95260.0,5.431e-05]
[1734882743661,4.90214035,95261.0,95260.0,5.431e-05]
[1734882744512,4.91114035,95261.0,95260.0,0.00099717]
[1734882744703,0.20996,95256.0,95255.0,8.57e-05]
[1734882744860,0.35996,95256.0,95255.0,8.57e-05]
[1734882745058,0.16462727,95256.0,95255.0,8.57e-05]
[1734882745270,2.14962727,95256.0,95255.0,8.57e-05]
[1734882745562,1.94062727,95256.0,95255.0,8.57e-05]
[1734882745935,0.15,95265.0,95255.0,8.57e-05]
[1734882746070,0.15,95265.0,95253.0,0.08743957]
[1734882746260,0.009,95261.0,95260.0,0.001]
[1734882746889,0.15,95265.0,95253.0,0.08743957]
[1734882747513,0.15,95265.0,95255.0,0.001]
[1734882747688,0.009,95256.0,95255.0,0.001]
[1734882747904,0.15,95256.0,95254.0,0.08743957]
[1734882750169,0.159,95256.0,95254.0,0.001]
[1734882750369,0.159,95256.0,95242.0,0.1]
[1734882750370,0.15,95256.0,95253.0,0.08743957]
[1734882750572,0.38354071,95256.0,95255.0,0.08743957]
[1734882750825,0.39254071,95256.0,95255.0,0.08743957]
[1734882751024,0.39254071,95256.0,95255.0,0.2125983]
[1734882751291,0.39254071,95256.0,95255.0,0.08143957]
[1734882752559,0.33696649,95256.0,95255.0,0.18274797]
[1734882752764,0.18696649,95256.0,95255.0,0.36044797]
[1734882752942,0.1822474,95256.0,95255.0,0.36144797]
[1734882753182,0.1554297,95256.0,95255.0,0.36144797]
[1734882753597,0.1554297,95256.0,95255.0,0.43959484]
[1734882753803,0.1464297,95256.0,95255.0,0.43859484]
[1734882754009,0.12879615,95256.0,95255.0,0.43859484]
[1734882754209,0.09350013,95268.0,95267.0,0.18143957]
[1734882754414,0.09350013,95268.0,95267.0,0.34288153]
[1734882755021,0.14025019,95271.0,95267.0,0.1013084]
[1734882755199,0.24350013,95273.0,95267.0,0.1013084]
[1734882755520,0.24350013,95273.0,95266.0,0.03063957]
[1734882755652,0.16467695,95272.0,95266.0,0.13194797]
[1734882755850,0.09350013,95271.0,95266.0,0.13194797]
[1734882756097,0.15,95269.0,95260.0,0.02463957]
[1734882756303,0.15,95267.0,95261.0,0.1013084]
[1734882756506,0.15,95267.0,95261.0,0.02463957]
[1734882756726,0.16468836,95267.0,95261.0,0.02463957]
[1734882757130,0.16468836,95267.0,95264.0,0.02463957]
[1734882757326,0.23354071,95265.0,95264.0,0.02463957]
[1734882757529,0.38354071,95265.0,95264.0,0.02463957]
[1734882757915,0.15,95264.0,95261.0,0.02463957]
[1734882758117,0.15,95264.0,95263.0,0.02463957]
[1734882759178,0.02368836,95267.0,95264.0,0.02463957]
[1734882760150,0.01468836,95267.0,95264.0,0.02463957]
[1734882760977,0.01468836,95267.0,95264.0,0.01863957]
[1734882761374,0.02368836,95267.0,95264.0,0.01963957]
[1734882761580,0.15,95265.0,95264.0,0.01963957]
[1734882761776,2.574,95265.0,95264.0,0.001]
[1734882761977,1.87356408,95265.0,95264.0,0.001]
[1734882762190,0.20556408,95265.0,95264.0,0.001]
[1734882762418,1.73356408,95265.0,95264.0,0.001]
[1734882762620,0.15,95265.0,95264.0,0.01963957]
[1734882762960,0.02368836,95267.0,95264.0,0.01963957]
[1734882763138,0.02368836,95267.0,95264.0,0.001]
[1734882763345,0.02385976,95267.0,95264.0,0.01963957]
[1734882763593,0.01485976,95267.0,95264.0,0.01863957]
[1734882763795,0.01485976,95267.0,95264.0,0.01963957]
[1734882763997,0.009,95265.0,95264.0,0.01963957]
[1734882764108,0.01485976,95267.0,95264.0,0.01863957]
[1734882764538,0.02385976,95267.0,95264.0,0.01963957]
[1734882764959,0.15,95265.0,95264.0,0.01963957]
[1734882766018,0.15,95265.0,95264.0,0.01363957]
[1734882766221,0.38370794,95265.0,95264.0,0.01363957]
[1734882766639,0.38370794,95265.0,95264.0,0.01263957]
[1734882767085,0.39270794,95265.0,95264.0,0.01363957]
[1734882767512,0.009,95265.0,95264.0,0.01363957]
[1734882767849,0.01485976,95267.0,95264.0,0.01263957]
[1734882768064,0.009,95265.0,95264.0,0.01363957]
[1734882768469,0.01485976,95267.0,95264.0,0.01263957]
[1734882768848,0.01485976,95267.0,95265.0,0.01263957]
[1734882771233,0.02385976,95267.0,95265.0,0.00763957]
[1734882771624,0.02385976,95267.0,95255.0,8.57e-05]
[1734882771828,0.02385976,95267.0,95256.0,0.11132554]
[1734882772035,0.15,95265.0,95256.0,0.11132554]
[1734882772828,0.15,95265.0,95257.0,0.00104967]
[1734882773023,0.15,95265.0,95258.0,0.1013084]
[1734882773375,0.2336146,95259.0,95258.0,0.1013084]
[1734882773547,0.3836146,95259.0,95258.0,0.1013084]
[1734882773754,0.3836146,95259.0,95258.0,0.3256084]
[1734882773961,0.3836146,95259.0,95258.0,0.40017988]
[1734882774744,0.3836146,95259.0,95255.0,8.57e-05]
[1734882774745,0.15,95258.0,95255.0,8.57e-05]
[1734882775125,0.01488743,95257.0,95255.0,8.57e-05]
[1734882775324,4.62896,95256.0,95255.0,8.57e-05]
[1734882775556,4.65196,95256.0,95255.0,8.57e-05]
[1734882775752,4.72241151,95256.0,95255.0,8.57e-05]
[1734882775957,0.382962,95255.0,95234.0,0.09471556]
[1734882776285,0.382962,95255.0,95242.0,0.09471556]
[1734882776286,0.15,95255.0,95242.0,0.09471556]
[1734882776452,0.15,95255.0,95243.0,0.1023582]
[1734882777019,0.00054419,95256.0,95243.0,0.1013084]
[1734882777471,0.18680561,95245.0,95243.0,0.1013084]
[1734882777673,0.15,95244.0,95243.0,0.1013084]
[1734882779547,0.157,95244.0,95243.0,0.1023084]
[1734882781829,0.157,95244.0,95243.0,0.0963084]
[1734882782232,0.157,95244.0,95243.0,0.19102396]
[1734882782548,0.157,95244.0,95243.0,0.31902396]
[1734882783153,0.007,95244.0,95243.0,0.41902396]
[1734882783350,0.007,95244.0,95243.0,0.50292536]
[1734882783755,0.08818631,95246.0,95245.0,0.19471556]
[1734882783957,0.08818631,95246.0,95245.0,0.29602396]
[1734882784321,0.08818631,95254.0,95253.0,0.09471556]
[1734882784515,0.08818631,95254.0,95253.0,0.19602396]
[1734882785556,0.15,95255.0,95254.0,0.09471556]
[1734882785903,0.00054419,95256.0,95255.0,0.09471556]
[1734882786020,0.00054419,95256.0,95255.0,0.19602396]
[1734882786997,0.00054419,95256.0,95255.0,0.19002396]
[1734882788921,0.00754419,95256.0,95255.0,0.19102396]
[1734882789124,0.00771559,95256.0,95255.0,0.1023084]
[1734882789330,0.00771559,95256.0,95255.0,0.19102396]
[1734882789689,0.15771559,95256.0,95255.0,0.23112376]
[1734882791027,0.29810866,95256.0,95255.0,0.22512376]
[1734882791445,0.29810866,95256.0,95255.0,0.1364082]
[1734882791614,0.29810866,95256.0,95255.0,0.0963084]
[1734882791813,0.31763156,95256.0,95255.0,0.11931193]
[1734882792018,0.31763156,95256.0,95255.0,0.03059637]
[1734882792218,0.31763156,95256.0,95255.0,0.001]
[1734882792219,0.31309209,95256.0,95255.0,0.001]
[1734882792424,0.31336029,95256.0,95255.0,0.001]
[1734882793023,0.02296722,95256.0,95255.0,0.001]
[1734882795353,0.00771559,95256.0,95255.0,0.001]
[1734882795967,0.00771559,95256.0,95255.0,0.01007653]
[1734882796174,0.00771559,95256.0,95255.0,0.00407653]
[1734882796380,0.00271559,95256.0,95255.0,0.1951502]
[1734882796578,0.00271559,95256.0,95255.0,0.19002396]
[1734882797738,0.15271559,95256.0,95255.0,0.19002396]
[1734882798943,0.15301061,95256.0,95255.0,0.19002396]
[1734882799300,0.15301061,95256.0,95246.0,0.08871556]
[1734882799502,0.15317893,95256.0,95247.0,0.1013084]
[1734882799735,0.00046334,95255.0,95247.0,0.1013084]
[1734882800741,0.18745746,95249.0,95247.0,0.1023084]
[1734882801062,0.15,95248.0,95247.0,0.001]
[1734882801970,0.15,95248.0,95246.0,0.08871556]
[1734882802170,0.15046334,95255.0,95246.0,0.1013084]
[1734882802375,0.0001712,95248.0,95246.0,0.19002396]
[1734882802630,0.0001712,95248.0,95246.0,0.20903493]
[1734882803038,0.0021712,95248.0,95246.0,0.20903493]
[1734882803880,0.0001712,95248.0,95246.0,0.20903493]
[1734882804477,0.0001712,95248.0,95246.0,0.19002396]
[1734882805440,0.0041712,95248.0,95246.0,0.19002396]
[1734882806039,0.0041712,95248.0,95246.0,0.18402396]
[1734882811032,0.0041712,95248.0,95246.0,0.17802396]
[1734882816099,0.0041712,95248.0,95246.0,0.08880116]
[1734882816933,0.0041712,95248.0,95247.0,0.42266742]
[1734882816934,2e-07,95248.0,95247.0,0.42266742]
[1734882817135,0.05556408,95274.0,95252.0,0.18871556]
[1734882817136,0.1624177,95253.0,95252.0,0.18871556]
[1734882817354,0.09636787,95253.0,95252.0,0.36787359]
[1734882817555,0.09636787,95253.0,95252.0,0.36682396]
[1734882817763,0.09636787,95253.0,95252.0,0.45098988]
[1734882818478,0.0001714,95286.0,95255.0,0.18871556]
[1734882818479,0.15,95260.0,95255.0,0.18871556]
[1734882818680,0.0938595,95270.0,95255.0,0.29002396]
[1734882818883,0.00011657,95256.0,95255.0,0.29002396]
[1734882819914,0.00011657,95256.0,95255.0,0.1013084]
[1734882820034,0.00111657,95256.0,95255.0,0.19002396]
[1734882820464,0.00111657,95256.0,95255.0,0.20913132]
[1734882821065,0.00111657,95256.0,95255.0,0.20313132]
[1734882822063,0.00011657,95256.0,95255.0,0.11441576]
[1734882822266,0.00011657,95256.0,95255.0,0.0953084]
[1734882822580,0.00111657,95256.0,95255.0,0.18402396]
[1734882822776,0.29090582,95256.0,95255.0,0.18402396]
[1734882823010,0.29590582,95256.0,95255.0,0.0953084]
[1734882823765,0.29590582,95256.0,95255.0,0.18402396]
[1734882824021,0.00511657,95256.0,95255.0,0.20242636]
[1734882825548,0.00511657,95256.0,95255.0,0.41238836]
[1734882825903,0.00511657,95256.0,95255.0,0.20242636]
[1734882826063,0.00511657,95256.0,95255.0,0.19642636]
[1734882826268,0.00011657,95256.0,95255.0,0.19642636]
[1734882826813,0.02467421,95256.0,95255.0,0.19642636]
[1734882827668,0.02467421,95256.0,95255.0,0.10711796]
[1734882828222,0.00511657,95256.0,95255.0,0.08871556]
[1734882828676,0.00011657,95256.0,95255.0,0.08871556]
[1734882829183,0.19283557,95256.0,95255.0,0.08871556]
[1734882829531,0.34283557,95256.0,95255.0,0.08871556]
[1734882829778,0.33783557,95256.0,95255.0,0.08871556]
[1734882830207,0.34283557,95256.0,95255.0,0.08971556]
[1734882830395,0.15511657,95256.0,95255.0,0.08971556]
[1734882830738,0.00511657,95256.0,95255.0,0.08950435]
[1734882830956,0.00511657,95256.0,95255.0,0.08350435]
[1734882831212,0.00511657,95256.0,95255.0,0.001]
[1734882831975,0.00011657,95256.0,95251.0,0.08250435]
[1734882832147,0.00511657,95256.0,95255.0,0.00935044]
[1734882832577,0.00011657,95256.0,95255.0,0.00835044]
[1734882832737,0.00511657,95256.0,95255.0,0.00935044]
[1734882833811,0.00511657,95256.0,95255.0,0.001]
[1734882834239,0.00511657,95256.0,95255.0,0.30821275]
[1734882834372,0.38981374,95256.0,95255.0,0.30821275]
[1734882835205,0.23481374,95256.0,95255.0,0.40721275]
[1734882835389,0.23981374,95256.0,95255.0,0.48992772]
[1734882835790,0.00011657,95256.0,95255.0,0.48992772]
[1734882835993,0.00011657,95256.0,95255.0,0.48392772]
[1734882836197,0.00411657,95256.0,95255.0,0.48392772]
[1734882836428,0.00011657,95256.0,95255.0,0.48392772]
[1734882836825,0.00011657,95256.0,95255.0,0.48592772]
[1734882839533,0.00011657,95256.0,95255.0,0.50731206]
[1734882839747,0.00011657,95256.0,95255.0,0.50739766]
[1734882841627,0.00011657,95256.0,95255.0,0.37948269]
[1734882841826,0.00011657,95256.0,95255.0,0.17389835]
[1734882842231,0.00011657,95256.0,95255.0,0.27494786]
[1734882842428,0.00011657,95256.0,95255.0,0.17389835]
[1734882842606,0.00011657,95256.0,95255.0,0.0020856]
[1734882843581,0.00011657,95256.0,95255.0,0.07858995]
[1734882843786,0.00011657,95256.0,95255.0,8.56e-05]
[1734882843983,0.00111657,95256.0,95255.0,8.56e-05]
[1734882844493,0.15011657,95256.0,95255.0,8.56e-05]
[1734882845048,0.15011657,95256.0,95255.0,0.0077446]
[1734882845738,0.15011657,95256.0,95255.0,8.56e-05]
[1734882845739,0.00011657,95256.0,95255.0,8.56e-05]
[1734882846154,0.00111657,95256.0,95252.0,0.07058995]
[1734882846970,0.00011657,95256.0,95252.0,0.07058995]
[1734882847084,0.00411657,95256.0,95252.0,0.07058995]
[1734882847487,0.15,95254.0,95253.0,0.00104969]
[1734882847710,0.15,95254.0,95253.0,0.07776247]
[1734882848726,0.33767599,95254.0,95253.0,0.07776247]
[1734882849122,0.18767599,95254.0,95253.0,0.25642056]
[1734882849348,0.18767599,95254.0,95253.0,0.40197087]
[1734882850321,0.005,95254.0,95253.0,0.40197087]
[1734882850527,0.33767599,95255.0,95254.0,0.38055395]
[1734882850683,0.33767599,95255.0,95254.0,0.58317075]
[1734882851113,0.33767599,95255.0,95254.0,0.57717075]
[1734882851511,0.15,95255.0,95254.0,0.57717075]
[1734882852123,0.00011657,95256.0,95255.0,0.16458995]
[1734882852324,0.00011657,95256.0,95255.0,0.26694787]
[1734882852670,0.00011657,95256.0,95255.0,0.36720675]
[1734882854356,0.00011657,95256.0,95255.0,0.36820675]
[1734882855279,0.00011657,95256.0,95255.0,0.38905993]
[1734882856125,0.00011657,95256.0,95255.0,0.38305993]
[1734882856539,0.00011657,95256.0,95255.0,0.38205993]
[1734882856860,0.00011657,95256.0,95255.0,0.38405993]
[1734882860693,5.7e-07,95256.0,95255.0,0.45965993]
[1734882861033,5.7e-07,95256.0,95255.0,0.45365993]
[1734882861613,5.7e-07,95256.0,95255.0,0.27475153]
[1734882861743,5.7e-07,95256.0,95255.0,0.21016158]
[1734882861945,5.7e-07,95256.0,95255.0,0.19575153]
[1734882862140,5.7e-07,95256.0,95255.0,0.26394785]
[1734882862431,5.7e-07,95256.0,95255.0,0.26289835]
[1734882862606,5.7e-07,95256.0,95255.0,0.17489835]
[1734882863167,5.7e-07,95256.0,95255.0,0.17498395]
[1734882863368,5.7e-07,95256.0,95255.0,0.16598395]
[1734882863575,5.7e-07,95256.0,95255.0,0.16903359]
[1734882864141,5.7e-07,95256.0,95255.0,0.25503359]
[1734882864342,5.7e-07,95256.0,95255.0,0.33214476]
[1734882865086,5.7e-07,95256.0,95255.0,0.33114476]
[1734882865962,5.7e-07,95256.0,95255.0,0.32514476]
[1734882867788,5.7e-07,95256.0,95255.0,0.32714476]
[1734882867991,5.7e-07,95256.0,95255.0,0.32514476]
[1734882868373,5.7e-07,95256.0,95255.0,0.33214476]
[1734882868815,5.7e-07,95256.0,95255.0,0.41434476]
[1734882869821,5.7e-07,95256.0,95255.0,0.47924476]
[1734882870241,5.7e-07,95256.0,95255.0,0.48824476]
[1734882870392,5.7e-07,95256.0,95255.0,0.47924476]
[1734882871164,5.7e-07,95256.0,95255.0,0.48824476]
[1734882873048,0.24387992,95302.0,95285.0,0.36248595]
[1734882873244,0.00023994,95286.0,95285.0,0.54202365]
[1734882873616,0.00023994,95286.0,95285.0,0.62422365]
[1734882875480,0.00023994,95286.0,95285.0,0.62922365]
[1734882875807,0.00023994,95286.0,95285.0,0.62422365]
[1734882875919,0.00023994,95286.0,95285.0,0.63873107]
[1734882876239,0.00023994,95286.0,95285.0,0.64473107]
[1734882879470,0.00023994,95286.0,95285.0,0.63873107]
[1734882879874,0.00023994,95286.0,95285.0,0.64373107]
[1734882880184,0.15,95326.0,95322.0,0.05858995]
[1734882880390,0.00016328,95324.0,95323.0,0.4646183]
[1734882880612,0.00016328,95324.0,95323.0,0.46356935]
[1734882881030,0.00016328,95324.0,95323.0,0.45756935]
[1734882882084,0.14081988,95328.0,95323.0,0.45756935]
[1734882882085,0.09405132,95346.0,95339.0,0.35636695]
[1734882882401,0.09405132,95346.0,95339.0,0.45767535]
[1734882882926,0.00023973,95340.0,95339.0,0.45767535]
[1734882883126,0.00023973,95340.0,95339.0,0.54539978]
[1734882884352,0.00023973,95340.0,95339.0,0.56623433]
[1734882886110,0.00023973,95340.0,95339.0,0.56023433]
[1734882886540,0.00023973,95340.0,95339.0,0.56823433]
[1734882887477,0.00023973,95340.0,95339.0,0.56023433]
[1734882888227,0.00023973,95340.0,95339.0,0.63633433]
[1734882888756,0.00023973,95340.0,95339.0,0.65933433]
[1734882888954,7.3e-07,95340.0,95339.0,0.66733433]
[1734882889153,7.3e-07,95340.0,95339.0,0.65933433]
[1734882889555,7.3e-07,95340.0,95339.0,0.66833433]
[1734882894344,9.3e-07,95344.0,95343.0,0.14058995]
[1734882894554,9.3e-07,95344.0,95343.0,0.3330582]
[1734882894753,9.3e-07,95344.0,95343.0,0.33200988]
[1734882895739,3.3e-07,95346.0,95345.0,0.14058995]
[1734882895968,3.3e-07,95346.0,95345.0,0.24294667]
[1734882896141,3.3e-07,95346.0,95345.0,0.24189835]
[1734882896340,3.3e-07,95346.0,95345.0,0.34320675]
[1734882897312,3.3e-07,95346.0,95345.0,0.35220675]
[1734882898096,0.00850429,95359.0,95358.0,0.35032495]
[1734882898295,0.00054401,95359.0,95358.0,0.45163335]
[1734882899201,0.00054401,95359.0,95358.0,0.46063335]
[1734882899484,0.00054401,95359.0,95358.0,0.54864549]
[1734882900291,0.00054401,95359.0,95358.0,0.46064549]
[1734882900481,0.07874401,95359.0,95358.0,0.40805554]
[1734882900654,0.07874401,95359.0,95358.0,0.25091049]
[1734882900873,0.07874401,95359.0,95358.0,0.16289835]
[1734882901035,0.07874401,95359.0,95358.0,0.25089835]
[1734882901911,0.07874401,95359.0,95358.0,0.24489835]
[1734882902212,0.07874401,95359.0,95358.0,0.15689835]
[1734882902503,0.07874401,95359.0,95358.0,0.14789835]
[1734882902806,0.07874401,95359.0,95358.0,0.20156754]
[1734882903200,0.07874401,95359.0,95358.0,0.19256754]
[1734882903430,0.07974401,95359.0,95358.0,0.19256754]
[1734882905196,0.07874401,95359.0,95358.0,0.19256754]
[1734882905775,0.07974401,95359.0,95358.0,0.19256754]
[1734882905947,0.07874401,95359.0,95358.0,0.19256754]
[1734882906184,0.07974401,95359.0,95358.0,0.18656754]
[1734882909311,0.07974401,95359.0,95358.0,0.14189835]
[1734882910677,0.07974401,95359.0,95358.0,0.0762577]
[1734882910863,0.09929375,95359.0,95358.0,0.0762577]
[1734882911041,0.09929375,95359.0,95358.0,0.0703432]
[1734882911565,0.09946475,95359.0,95358.0,0.0703432]
[1734882911720,0.07991501,95359.0,95358.0,0.0703432]
[1734882912186,0.07991501,95359.0,95358.0,0.08839884]
[1734882914630,0.28964801,95359.0,95358.0,8.55e-05]
[1734882914827,0.44102656,95359.0,95358.0,8.55e-05]
[1734882915263,0.23129356,95359.0,95358.0,8.55e-05]
[1734882915568,0.22891501,95359.0,95358.0,8.55e-05]
[1734882915899,0.07991501,95359.0,95358.0,8.55e-05]
[1734882916116,0.07991501,95359.0,95350.0,0.04772403]
[1734882916317,0.07991501,95359.0,95351.0,0.0135724]
[1734882917539,0.07891501,95359.0,95351.0,0.0135724]
[1734882917890,0.209735,95358.0,95351.0,0.0135724]
[1734882918084,0.15,95357.0,95351.0,0.0135724]
[1734882919034,0.20974,95356.0,95351.0,0.0135724]
[1734882919240,0.15,95355.0,95350.0,0.04667545]
[1734882919651,0.15,95355.0,95349.0,0.04667545]
[1734882920270,0.0796,95354.0,95341.0,0.00104859]
[1734882920479,0.15,95355.0,95339.0,0.04676095]
[1734882920480,0.046,95345.0,95339.0,0.04676095]
[1734882920682,0.196,95345.0,95339.0,0.04676095]
[1734882921124,0.196,95345.0,95339.0,0.04076095]
[1734882921444,0.196,95345.0,95342.0,0.088]
[1734882921579,0.196,95345.0,95343.0,0.01287609]
[1734882921983,0.196,95345.0,95328.0,0.2098]
[1734882921984,0.18767599,95358.0,95357.0,0.12876095]
[1734882922163,0.18767599,95358.0,95357.0,0.43980735]
[1734882922387,0.18767599,95358.0,95357.0,0.48378809]
[1734882923093,0.26727599,95358.0,95357.0,0.39578809]
[1734882923294,0.18767599,95358.0,95357.0,0.48378809]
[1734882923590,0.18967599,95358.0,95357.0,0.48378809]
[1734882923795,0.0001714,95367.0,95358.0,0.12876095]
[1734882923922,0.0001714,95367.0,95358.0,0.32144536]
[1734882924128,0.0001714,95367.0,95358.0,0.32039696]
[1734882924533,0.0001714,95367.0,95358.0,0.09032761]
[1734882924758,0.001,95358.0,95357.0,0.04398074]
[1734882924932,0.001,95358.0,95350.0,8.55e-05]
[1734882925123,0.0461,95357.0,95350.0,0.04084645]
[1734882925322,0.15,95355.0,95350.0,8.55e-05]
[1734882925560,0.209744,95354.0,95350.0,8.55e-05]
[1734882925737,0.209749,95352.0,95350.0,8.55e-05]
[1734882925968,0.2302,95351.0,95339.0,0.03484645]
[1734882926134,0.15,95349.0,95339.0,0.13615485]
[1734882926334,0.209757,95348.0,95340.0,0.01361549]
[1734882926533,0.01402497,95348.0,95340.0,0.01361549]
[1734882926755,0.01402497,95348.0,95339.0,0.03484645]
[1734882926952,0.01402497,95348.0,95335.0,0.209786]
[1734882927225,0.0195619,95347.0,95336.0,0.1488617]
[1734882927444,0.0195619,95347.0,95337.0,0.088]
[1734882927652,0.0802,95346.0,95336.0,0.0475533]
[1734882927859,0.0802,95346.0,95330.0,0.03484645]
[1734882927860,0.0936212,95342.0,95340.0,0.088]